bitfinex-derivatives/quotes_SOLF0:USTF0_20250818
["timestamp","ask_amount","ask_price","bid_price","bid_amount"]
[1755498182571,2.9,181.45,181.33,2.97]
[1755498182967,2.9,181.45,181.37,2.97]
[1755498183170,2.9,181.45,181.4,5.5089]
[1755498183369,2.9,181.44,181.41,2.97]
[1755498183773,19.43,181.54,181.37,2.97]
[1755498183969,2.9,181.52,181.41,2.97]
[1755498184371,2.9,181.52,181.46,5.5072]
[1755498184673,120.67067196,181.55,181.45,2.97]
[1755498184975,2.9,181.55,181.51,2.97]
[1755498185175,2.9,181.55,181.45,2.97]
[1755498185667,370.38,181.69,181.45,2.97]
[1755498185869,4.04639282,181.68,181.5,2.97]
[1755498186069,2.9,181.61,181.5,2.97]
[1755498187370,5.5034,181.59,181.52,5.5054]
[1755498187564,2.9,181.58,181.52,2.97]
[1755498187963,2.9,181.58,181.55,5.5045]
[1755498188168,2.9,181.58,181.52,2.97]
[1755498188877,2.9,181.58,181.44,11.96989523]
[1755498189172,2.9,181.56,181.49,2.97]
[1755498189680,2.9,181.56,181.52,5.5054]
[1755498189872,2.9,181.55,181.52,2.97]
[1755498190079,2.9,181.66,181.45,2.97]
[1755498190267,5.5048,181.55,181.45,2.97]
[1755498190470,2.9,181.54,181.45,2.97]
[1755498190880,2.9,181.54,181.39,11.96989523]
[1755498191078,2.9,181.54,181.42,2.97]
[1755498191280,2.9,181.52,181.44,2.97]
[1755498191478,2.9,181.55,181.44,2.97]
[1755498191680,2.9,181.55,181.44,14.93989523]
[1755498191868,2.9,181.68,181.45,2.97]
[1755498192181,2.9,181.66,181.45,2.97]
[1755498192372,4.01851358,181.65,181.45,2.97]
[1755498192574,2.9,181.59,181.45,2.97]
[1755498192775,2.9,181.59,181.49,11.96989523]
[1755498192980,2.9,181.59,181.5,2.97]
[1755498193278,2.9,181.68,181.5,2.97]
[1755498193466,8.4023,181.63,181.5,2.97]
[1755498193671,2.9,181.63,181.5,2.97]
[1755498194085,2.9,181.63,181.49,11.96989523]
[1755498194282,2.9,181.63,181.53,2.97]
[1755498194977,2.9,181.63,181.5,2.97]
[1755498195279,2.9,181.56,181.5,2.97]
[1755498196180,2.9,181.59,181.53,2.97]
[1755498196682,2.9,181.56,181.46,524.64]
[1755498196881,2.9,181.56,181.5,2.97]
[1755498197188,5.5046,181.55,181.5,2.97]
[1755498197375,2.9,181.53,181.5,2.97]
[1755498197577,2.9,181.53,181.47,2.97]
[1755498197779,2.9,181.52,181.48,8.4765]
[1755498197979,2.9,181.52,181.48,2.97]
[1755498198375,5.5051,181.54,181.48,2.97]
[1755498198676,370.38,181.69,181.45,2.97]
[1755498198677,2.9,181.52,181.45,2.97]
[1755498199080,2.9,181.49,181.42,2.97]
[1755498199485,2.9,181.49,181.44,5.5078]
[1755498199784,2.9,181.6,181.44,2.97]
[1755498199979,2.9,181.58,181.44,2.97]
[1755498200183,2.9,181.56,181.44,2.97]
[1755498200379,3.99877261,181.55,181.44,8.4778]
[1755498200581,2.9,181.53,181.44,8.4778]
[1755498200782,2.9,181.53,181.45,5.5075]
[1755498200980,2.9,181.53,181.44,2.97]
[1755498201382,2.9,181.53,181.42,11.96989523]
[1755498201587,2.9,181.52,181.5,2.97]
[1755498201794,2.9,181.52,181.42,11.96989523]
[1755498201992,2.9,181.52,181.49,2.97]
[1755498202488,3.12,181.64,181.5,2.98]
[1755498202687,3.12,181.62,181.5,2.98]
[1755498203086,530.57649969,181.69,181.43,2.98]
[1755498203087,3.12,181.6,181.43,2.98]
[1755498203280,3.12,181.58,181.43,2.98]
[1755498203685,3.12,181.58,181.48,5.5065]
[1755498203891,3.12,181.58,181.46,2.98]
[1755498205086,3.12,181.58,181.48,5.5065]
[1755498206191,3.12,181.58,181.49,5.5063]
[1755498206390,3.12,181.56,181.49,5.5063]
[1755498207494,3.12,181.56,181.46,2.98]
[1755498207894,3.12,181.56,181.47,5.5068]
[1755498208086,3.12,181.56,181.46,2.98]
[1755498208287,3.12,181.54,181.46,2.98]
[1755498208483,4.01358318,181.53,181.43,2.98]
[1755498208690,3.12,181.54,181.43,2.98]
[1755498208886,3.12,181.52,181.43,2.98]
[1755498209091,3.12,181.52,181.45,5.5075]
[1755498209489,16.53,181.49,181.24,2.98]
[1755498209690,3.12,181.39,181.24,2.98]
[1755498209982,3.12,181.37,181.24,2.98]
[1755498210182,3.12,181.35,181.24,2.98]
[1755498210389,3.12,181.33,181.24,2.98]
[1755498211794,3.12,181.33,181.24,8.4939]
[1755498212387,6.01649969,181.39,181.24,8.4939]
[1755498212388,3.12,181.31,181.24,8.4939]
[1755498212883,3.12,181.31,181.24,2.98]
[1755498213297,3.12,181.31,181.25,5.5134]
[1755498213787,3.12,181.31,181.24,2.98]
[1755498213995,6.01649969,181.38,181.26,5.5131]
[1755498214198,4.03078611,181.37,181.26,8.4931]
[1755498214493,3.12,181.35,181.26,8.4931]
[1755498214696,3.12,181.33,181.26,8.4931]
[1755498214991,3.12,181.31,181.26,8.4931]
[1755498215192,3.12,181.3,181.26,8.4931]
[1755498215396,3.12,181.3,181.27,5.513]
[1755498215995,3.12,181.38,181.28,5.5127]
[1755498216294,3.12,181.36,181.28,8.4927]
[1755498216494,3.12,181.34,181.28,8.4927]
[1755498216689,4.03064498,181.33,181.28,8.4927]
[1755498216890,3.12,181.31,181.28,8.4927]
[1755498217091,3.12,181.39,181.29,8.4924]
[1755498217292,3.12,181.37,181.29,2.98]
[1755498217486,4.03138193,181.36,181.3,5.5119]
[1755498217692,3.12,181.34,181.3,5.5119]
[1755498217887,3.12,181.39,181.3,5.5119]
[1755498218088,3.12,181.37,181.3,5.5119]
[1755498218296,3.12,181.35,181.3,5.5119]
[1755498218597,3.12,181.34,181.3,8.4919]
[1755498218793,3.12,181.32,181.31,5.5118]
[1755498218984,3.12,181.32,181.3,2.98]
[1755498219291,3.12,181.32,181.3,5.5121]
[1755498220396,3.12,181.41,181.31,5.5116]
[1755498220591,3.12,181.39,181.31,5.5116]
[1755498220793,4.02851043,181.38,181.31,5.5116]
[1755498220997,3.12,181.36,181.3,8.4921]
[1755498221496,3.12,181.36,181.27,2.98]
[1755498221694,4.02745959,181.35,181.19,2.98]
[1755498221997,7.14721003,181.34,181.27,5.513]
[1755498222200,11.96989523,181.37,181.27,5.513]
[1755498222499,11.96989523,181.37,181.24,2.98]
[1755498222500,3.12,181.32,181.24,2.98]
[1755498223190,3.12,181.32,181.3,5.5119]
[1755498223492,3.12,181.38,181.28,2.98]
[1755498223693,5.5108,181.35,181.28,2.98]
[1755498223897,3.12,181.34,181.28,2.98]
[1755498224292,3.12,181.34,181.29,5.5122]
[1755498225197,3.12,181.34,181.3,5.512]
[1755498225787,3.12,181.32,181.3,5.512]
[1755498225992,3.12,181.31,181.3,5.512]
[1755498227193,3.12,181.3,181.26,2.98]
[1755498227500,3.12,181.32,181.26,2.98]
[1755498227700,3.12,181.32,181.27,5.5128]
[1755498228001,3.12,181.32,181.26,2.98]
[1755498228495,5.511,181.34,181.28,5.5126]
[1755498228695,3.12,181.3,181.18,11.96989523]
[1755498228996,3.12,181.3,181.19,2.98]
[1755498229603,3.12,181.33,181.19,2.98]
[1755498230397,3.12,181.33,181.22,2.98]
[1755498232104,3.12,181.33,181.29,5.5122]
[1755498232294,5.5106,181.35,181.29,8.4922]
[1755498232497,2.87,181.31,181.29,2.98]
[1755498233602,2.87,181.3,181.29,5.5123]
[1755498235607,2.87,181.3,181.26,2.98]
[1755498235803,2.87,181.35,181.18,2.98]
[1755498236308,2.87,181.35,181.27,5.5128]
[1755498236704,2.87,181.35,181.26,5.5131]
[1755498236911,2.87,181.35,181.23,2.98]
[1755498237304,2.87,181.35,181.27,2.98]
[1755498238098,2.87,181.35,181.3,5.5119]
[1755498238309,2.87,181.34,181.21,7.09293878]
[1755498238609,2.87,181.34,181.22,2.98]
[1755498239410,2.87,181.33,181.31,2.98]
[1755498240108,2.87,181.32,181.31,2.98]
[1755498240504,2.87,181.32,181.31,8.4918]
[1755498240906,16.53,181.41,181.33,5.5111]
[1755498241107,2.87,181.37,181.31,2.98]
[1755498241607,2.87,181.37,181.33,5.511]
[1755498242012,2.87,181.37,181.35,5.5104]
[1755498242231,2.87,181.36,181.35,5.5104]
[1755498242814,2.87,181.36,181.35,8.4904]
[1755498243113,2.87,181.36,181.27,2.98]
[1755498243507,2.87,181.36,181.25,2.98]
[1755498243709,3.93018988,181.35,181.27,5.5129]
[1755498243902,2.87,181.34,181.27,5.5129]
[1755498244113,2.87,181.34,181.25,2.98]
[1755498246904,2.87,181.34,181.28,5.5125]
[1755498247312,2.87,181.34,181.26,2.98]
[1755498248408,2.87,181.32,181.26,2.98]
[1755498248715,2.87,181.32,181.22,2.98]
[1755498249915,2.87,181.32,181.25,5.5134]
[1755498250715,2.87,181.32,181.26,5.5132]
[1755498251311,2.87,181.3,181.27,5.5129]
[1755498251516,2.87,181.35,181.27,2.98]
[1755498251716,2.87,181.33,181.27,2.98]
[1755498251917,6.01649969,181.39,181.28,2.98]
[1755498252222,2.87,181.3,181.28,2.98]
[1755498252609,2.87,181.32,181.29,2.98]
[1755498253018,2.87,181.31,181.3,5.5119]
[1755498253318,6.83664925,181.31,181.29,2.98]
[1755498253514,2.87,181.3,181.29,8.4923]
[1755498253717,2.87,181.3,181.22,2.98]
[1755498254022,2.87,181.36,181.22,2.98]
[1755498254217,2.87,181.34,181.3,2.98]
[1755498254415,3.96586187,181.33,181.22,2.98]
[1755498254621,2.87,181.34,181.31,5.5118]
[1755498254622,3.96586187,181.32,181.31,5.5118]
[1755498254916,3.96586187,181.32,181.31,2.98]
[1755498255716,2.87,181.31,181.25,2.98]
[1755498255924,6.83586187,181.3,181.28,2.98]
[1755498256217,3.96586187,181.29,181.28,2.98]
[1755498256422,3.96586187,181.29,181.28,8.4927]
[1755498256822,4.09239684,181.29,181.28,2.98]
[1755498257526,4.09239684,181.29,181.28,8.4926]
[1755498258321,21.18239684,181.29,181.09,12.15849831]
[1755498258521,21.18239684,181.29,181.01,11.0414]
[1755498258522,2.87,181.19,181.03,2.98]
[1755498258727,2.87,181.17,181.03,2.98]
[1755498258934,13.22077393,181.2,180.99,7.09293878]
[1755498258935,8.99783515,181.15,181.06,2.98]
[1755498259230,8.99783515,181.13,181.06,2.98]
[1755498259425,2.87,181.11,181.06,2.98]
[1755498259726,2.87,181.08,180.98,151.38]
[1755498260026,6.96239684,181.07,181.05,2.98]
[1755498260226,4.09239684,181.06,181.05,2.98]
[1755498261125,4.09239684,181.06,180.98,151.38]
[1755498261126,4.32168215,181.06,180.98,151.38]
[1755498261420,2.87,181.08,180.99,2.98]
[1755498261626,7.18426842,181.07,181.04,2.98]
[1755498261924,7.18426842,181.06,180.96,151.38]
[1755498262120,4.31426842,181.05,181.0,2.96]
[1755498262320,2.97,181.05,181.02,2.96]
[1755498262624,2.97,181.05,181.01,5.5206]
[1755498263015,2.97,181.05,180.96,151.38]
[1755498263215,6.12783515,181.15,181.02,5.5204]
[1755498263415,2.97,181.04,181.02,5.5204]
[1755498263615,0.9614322,181.11,180.96,151.38]
[1755498263826,7.26953258,181.1,180.96,151.38]
[1755498264026,2.97,181.08,180.96,151.38]
[1755498264328,2.97,181.06,180.96,151.38]
[1755498264629,2.97,181.06,181.04,5.5199]
[1755498264827,0.9614322,181.11,180.96,151.38]
[1755498264828,2.97,181.05,180.96,151.38]
[1755498265126,2.97,181.1,180.97,1.61]
[1755498265322,2.97,181.08,181.03,5.5203]
[1755498266323,2.97,181.08,181.04,5.5199]
[1755498266527,2.97,181.07,180.99,1.61]
[1755498267622,2.97,181.1,180.97,1.61]
[1755498268225,2.97,181.1,181.05,5.5194]
[1755498268426,2.97,181.1,181.02,1.61]
[1755498269432,2.97,181.1,181.05,5.5195]
[1755498270225,2.97,181.1,181.06,5.5194]
[1755498270629,2.97,181.1,181.08,5.5188]
[1755498270826,2.97,181.09,181.08,5.5188]
[1755498271334,2.97,181.07,181.04,1.61]
[1755498271630,2.97,181.1,181.09,5.5185]
[1755498273334,2.97,181.1,181.05,1.61]
[1755498273527,2.97,181.1,181.03,1.61]
[1755498274035,2.97,181.1,181.07,5.5189]
[1755498275036,2.97,181.1,181.06,5.5193]
[1755498275628,2.97,181.1,181.07,5.5191]
[1755498275927,2.97,181.12,181.03,1.61]
[1755498276130,0.96111357,181.14,181.09,1.61]
[1755498276434,2.97,181.16,181.09,1.61]
[1755498276633,2.97,181.16,181.15,5.5167]
[1755498277132,2.97,181.15,181.06,12.02741456]
[1755498277333,2.97,181.13,181.04,1.61]
[1755498277833,2.97,181.13,181.1,5.5181]
[1755498278027,2.97,181.13,181.06,1.61]
[1755498278231,2.97,181.13,181.11,5.5176]
[1755498278427,2.97,181.13,181.06,1.61]
[1755498278930,2.97,181.13,181.12,5.5176]
[1755498279423,5.5155,181.19,181.04,11.04]
[1755498279626,0.96106048,181.21,181.11,1.61]
[1755498279627,2.97,181.18,181.11,1.61]
[1755498279928,2.97,181.18,181.17,5.516]
[1755498280532,6.47446861,181.25,181.21,5.5147]
[1755498280730,4.29191001,181.24,181.21,5.5147]
[1755498281030,2.97,181.22,181.15,1.61]
[1755498281428,2.97,181.22,181.19,5.5154]
[1755498281632,2.97,181.21,181.15,1.61]
[1755498282836,5.5142,181.23,181.19,5.5152]
[1755498283038,2.97,181.2,181.19,5.5152]
[1755498283332,2.97,181.2,181.17,5.516]
[1755498283533,2.97,181.24,181.12,1.61]
[1755498283734,2.97,181.22,181.12,1.61]
[1755498283940,2.97,181.17,181.09,1.61]
[1755498284438,2.97,181.17,181.13,5.5172]
[1755498284635,2.97,181.17,181.09,1.61]
[1755498285133,5.5166,181.16,181.09,1.61]
[1755498285339,2.97,181.15,181.09,1.61]
[1755498286334,5.5166,181.16,181.12,5.5175]
[1755498286539,2.97,181.13,181.12,5.5175]
[1755498286733,2.97,181.12,181.08,5.5186]
[1755498287038,4.33985584,181.11,181.04,1.61]
[1755498287248,2.97,181.1,181.04,1.61]
[1755498288745,2.97,181.1,181.06,5.5192]
[1755498289547,2.97,181.1,181.05,5.5196]
[1755498289739,2.97,181.07,181.05,5.5196]
[1755498289940,2.97,181.06,181.05,5.5196]
[1755498290141,2.97,181.14,181.02,1.61]
[1755498290339,10.47148981,181.13,180.99,1.61]
[1755498290543,4.34365466,181.12,180.99,1.61]
[1755498290750,2.97,181.1,181.03,5.5201]
[1755498290951,4.34365466,181.09,181.03,5.5201]
[1755498291154,2.97,181.07,181.03,5.5201]
[1755498291453,4.34365466,181.06,181.03,5.5201]
[1755498291652,2.97,181.04,181.03,5.5201]
[1755498292147,6.12783515,181.13,180.96,7.10144484]
[1755498292352,2.89,181.06,181.04,5.5199]
[1755498292651,2.89,181.06,180.96,7.10144484]
[1755498292851,2.89,181.06,181.05,5.5197]
[1755498293051,7.23535285,181.06,181.05,5.5197]
[1755498293252,4.34535285,181.06,181.05,5.5197]
[1755498293448,16.29319757,181.15,180.96,7.10144484]
[1755498293449,2.89,181.08,180.96,7.10144484]
[1755498293647,2.89,181.08,180.97,1.61]
[1755498294044,2.89,181.07,181.04,1.61]
[1755498294255,2.89,181.13,181.04,1.61]
[1755498294455,2.89,181.11,181.05,5.5195]
[1755498294659,2.89,181.08,181.05,5.5195]
[1755498294952,2.89,181.07,181.05,5.5195]
[1755498295347,2.89,181.13,181.04,7.1299]
[1755498295652,2.89,181.07,181.01,1.61]
[1755498296042,4.35175719,181.06,180.98,148.36]
[1755498296245,2.89,181.06,180.99,1.61]
[1755498296451,2.89,181.06,181.04,5.5199]
[1755498296858,2.89,181.05,181.02,1.61]
[1755498297054,2.89,181.05,181.03,5.5202]
[1755498297252,2.89,181.04,181.03,5.5202]
[1755498297759,2.89,181.06,181.04,5.52]
[1755498298054,2.89,181.05,181.04,5.52]
[1755498298550,7.24957213,181.05,181.04,5.52]
[1755498298750,2.89,181.08,181.06,5.5193]
[1755498298953,7.24909952,181.07,181.04,1.61]
[1755498299256,4.35909952,181.06,181.05,5.5196]
[1755498299847,4.35909952,181.06,181.05,7.1296]
[1755498300047,7.24909952,181.06,181.05,5.5196]
[1755498300251,2.89,181.09,181.08,5.5188]
[1755498300453,4.36063586,181.09,181.08,1.61]
[1755498300647,4.36063586,181.09,180.96,11.0446]
[1755498300955,2.89,181.07,181.06,5.5192]
[1755498301151,7.25063586,181.07,181.06,5.5192]
[1755498301559,4.36063586,181.07,181.06,7.1292]
[1755498301861,7.25063586,181.07,181.06,5.5192]
[1755498304654,4.36063586,181.07,181.06,7.1292]
[1755498304949,2.89,181.11,181.1,5.5182]
[1755498305158,2.89,181.14,181.08,1.61]
[1755498305358,2.89,181.14,181.05,1.61]
[1755498305555,6.12783515,181.14,181.03,1.61]
[1755498305761,2.89,181.13,181.04,5.5199]
[1755498305960,2.89,181.12,181.04,5.5199]
[1755498306162,2.89,181.12,181.01,1.61]
[1755498306359,2.89,181.11,181.03,5.5201]
[1755498306562,2.89,181.11,181.0,147.64]
[1755498307162,2.89,181.11,181.04,5.5199]
[1755498307363,2.89,181.11,181.0,147.64]
[1755498307664,5.5193,181.07,181.03,5.5202]
[1755498307964,2.89,181.06,181.0,147.64]
[1755498308260,2.89,181.06,181.03,5.5201]
[1755498308458,2.89,181.06,181.0,149.25]
[1755498308862,2.89,181.06,181.02,5.5204]
[1755498309259,2.89,181.06,180.96,147.44]
[1755498309458,2.89,181.06,180.98,5.5217]
[1755498309657,2.89,181.06,180.96,147.44]
[1755498309862,2.89,181.06,180.96,149.05]
[1755498310359,2.89,181.06,180.97,1.61]
[1755498310962,2.89,181.06,180.96,147.44]
[1755498311264,2.89,181.06,180.96,149.05]
[1755498311462,2.89,181.06,180.97,1.61]
[1755498312267,2.89,181.06,180.96,154.54144484]
[1755498312268,2.89,181.06,181.05,5.5197]
[1755498313061,370.88,181.15,181.04,1.61]
[1755498313568,2.89,181.14,181.1,5.5181]
[1755498313757,2.89,181.14,181.06,1.61]
[1755498313958,7.10144484,181.23,181.11,5.5178]
[1755498314158,2.89,181.21,181.11,1.61]
[1755498314856,2.89,181.21,181.09,1.61]
[1755498315061,2.89,181.22,181.11,5.5178]
[1755498315766,2.89,181.2,181.04,1.61]
[1755498316173,2.89,181.2,181.07,1.61]
[1755498316772,7.10319489,181.19,181.14,1.61]
[1755498317064,2.89,181.17,181.14,1.61]
[1755498317463,371.88076861,181.25,181.1,7.10144484]
[1755498317670,2.89,181.19,181.16,1.61]
[1755498317972,2.89,181.2,181.16,5.5162]
[1755498318269,2.89,181.2,181.12,1.61]
[1755498318672,2.89,181.17,181.1,1.61]
[1755498319067,5.5172,181.14,181.07,1.61]
[1755498319271,2.89,181.13,181.07,1.61]
[1755498319764,2.89,181.13,181.04,147.14]
[1755498319765,2.89,181.12,181.05,1.61]
[1755498320165,5.5176,181.12,181.08,5.5187]
[1755498320365,2.89,181.1,181.08,5.5187]
[1755498320569,2.89,181.13,181.09,1.61]
[1755498320769,2.89,181.13,181.1,1.61]
[1755498320967,7.10144484,181.23,181.04,147.14]
[1755498321272,2.89,181.15,181.12,7.1273]
[1755498321464,2.89,181.15,181.07,7.10144484]
[1755498321665,2.89,181.15,181.13,1.61]
[1755498321861,2.89,181.15,181.13,5.517]
[1755498322068,5.5158,181.18,181.13,1.61]
[1755498322372,2.91,181.24,181.08,1.6]
[1755498322676,2.91,181.16,181.1,1.6]
[1755498322974,2.91,181.2,181.07,7.10144484]
[1755498323172,2.91,181.18,181.11,1.6]
[1755498323779,0.96076861,181.25,181.12,1.6]
[1755498323974,7.11790674,181.24,181.12,1.6]
[1755498324279,2.91,181.27,181.16,1.6]
[1755498324679,2.91,181.27,181.26,5.5133]
[1755498325181,0.96027815,181.34,181.19,7.10144484]
[1755498325383,7.11717298,181.33,181.2,1.6]
[1755498325675,2.91,181.31,181.2,1.6]
[1755498325872,2.91,181.31,181.19,7.10144484]
[1755498325873,2.91,181.31,181.21,1.6]
[1755498326268,2.91,181.31,181.3,5.5121]
[1755498327974,2.91,181.3,181.29,5.5123]
[1755498328578,2.91,181.39,181.3,5.512]
[1755498328876,2.91,181.37,181.26,1.6]
[1755498329074,4.19860754,181.36,181.26,1.6]
[1755498329277,2.91,181.35,181.26,1.6]
[1755498329479,2.91,181.35,181.23,1.6]
[1755498329677,4.19781727,181.34,181.19,7.10144484]
[1755498329873,2.91,181.32,181.2,1.6]
[1755498330174,2.91,181.28,181.2,1.6]
[1755498330575,2.91,181.27,181.23,5.5141]
[1755498330778,2.91,181.27,181.2,1.6]
[1755498331774,2.91,181.26,181.2,1.6]
[1755498332678,2.91,181.26,181.22,5.5144]
[1755498333283,2.91,181.3,181.15,1.6]
[1755498333476,7.10144484,181.31,181.15,1.6]
[1755498333477,2.91,181.28,181.15,1.6]
[1755498333677,4.18853376,181.27,181.16,5.5161]
[1755498333877,2.91,181.25,181.16,5.5161]
[1755498334281,2.91,181.25,181.15,1.6]
[1755498334790,2.91,181.22,181.15,1.6]
[1755498335275,7.10144484,181.31,181.13,7.10144484]
[1755498335476,370.58,181.34,181.18,1.6]
[1755498335477,4.18734327,181.3,181.18,1.6]
[1755498335677,2.91,181.28,181.18,1.6]
[1755498335883,2.91,181.28,181.23,1.6]
[1755498336073,2.91,181.28,181.22,1.6]
[1755498336578,2.91,181.27,181.22,1.6]
[1755498336882,2.91,181.26,181.25,5.5134]
[1755498337079,2.91,181.29,181.25,1.6]
[1755498337281,2.91,181.37,181.23,1.6]
[1755498337481,2.91,181.3,181.26,5.5132]
[1755498337884,2.91,181.3,181.23,1.6]
[1755498338183,2.91,181.3,181.21,1.6]
[1755498338576,7.08770275,181.4,181.21,1.6]
[1755498338779,2.91,181.32,181.24,1.6]
[1755498339481,2.91,181.34,181.24,1.6]
[1755498339878,2.91,181.34,181.33,5.5109]
[1755498340679,5.509,181.41,181.36,5.5101]
[1755498340881,2.91,181.37,181.36,5.5101]
[1755498341083,2.91,181.37,181.23,11.99783982]
[1755498341480,2.91,181.37,181.27,1.6]
[1755498341682,5.5108,181.35,181.27,1.6]
[1755498341886,2.91,181.34,181.27,1.6]
[1755498342385,2.91,181.34,181.31,5.5115]
[1755498342584,2.91,181.33,181.27,1.6]
[1755498342981,371.53984113,181.44,181.21,370.58]
[1755498342982,2.91,181.32,181.21,370.58]
[1755498343186,2.91,181.32,181.2,1.6]
[1755498343491,2.91,181.32,181.24,5.5137]
[1755498343686,2.91,181.32,181.2,1.6]
[1755498343876,153.62783515,181.38,181.17,1.6]
[1755498343877,2.91,181.3,181.17,1.6]
[1755498344479,2.91,181.3,181.23,5.514]
[1755498344688,2.91,181.3,181.2,1.6]
[1755498346589,2.91,181.41,181.28,5.5124]
[1755498346786,2.91,181.39,181.28,5.5124]
[1755498346983,4.18580125,181.38,181.26,1.6]
[1755498347184,2.91,181.36,181.26,1.6]
[1755498347977,2.91,181.36,181.24,1.6]
[1755498348381,2.91,181.36,181.29,5.5124]
[1755498348987,4.18385594,181.35,181.24,1.6]
[1755498349189,2.91,181.34,181.24,1.6]
[1755498349593,2.91,181.34,181.27,5.5128]
[1755498349786,2.91,181.34,181.24,1.6]
[1755498350184,2.91,181.34,181.29,5.5122]
[1755498350889,2.91,181.34,181.2,1.6]
[1755498351093,4.18259537,181.33,181.2,1.6]
[1755498351389,2.91,181.31,181.2,1.6]
[1755498351582,9.69609615,181.3,181.2,1.6]
[1755498351789,2.91,181.29,181.2,1.6]
[1755498353484,2.91,181.29,181.27,5.513]
[1755498353989,2.87,181.28,181.27,5.513]
[1755498355898,2.87,181.27,181.26,5.5133]
[1755498356399,11.99783982,181.41,181.24,1.61]
[1755498356400,2.87,181.33,181.24,1.61]
[1755498356597,2.87,181.31,181.24,1.61]
[1755498357494,4.20499632,181.3,181.26,5.5133]
[1755498357694,2.87,181.27,181.26,5.5133]
[1755498358503,16.53,181.22,181.0,7.09369211]
[1755498358802,2.87,181.19,181.01,1.61]
[1755498359093,2.87,181.17,181.05,5.5194]
[1755498359294,2.87,181.15,181.02,1.61]
[1755498359486,2.87,181.13,181.02,1.61]
[1755498359692,2.87,181.11,181.02,1.61]
[1755498360389,4.20429477,181.1,181.02,1.61]
[1755498360590,2.87,181.19,181.06,5.5194]
[1755498360785,2.87,181.17,181.06,5.5194]
[1755498360999,2.87,181.15,181.04,1.61]
[1755498361194,2.87,181.13,181.04,1.61]
[1755498361396,2.87,181.11,181.04,1.61]
[1755498361603,2.87,181.11,181.07,5.5188]
[1755498361986,2.87,181.11,181.02,1.61]
[1755498363287,6.12136422,181.22,180.97,12.02512006]
[1755498363493,316.0,181.29,181.03,1.61]
[1755498363494,2.87,181.2,181.03,1.61]
[1755498363695,2.87,181.18,181.03,1.61]
[1755498363889,2.87,181.16,181.07,1.61]
[1755498364488,2.87,181.16,181.12,5.5173]